bitfinex/quotes_ETHUSD_20220218
["timestamp","ask_amount","ask_price","bid_price","bid_amount"]
[1645177311696,1.49,2936.4,2936.3,0.0239898]
[1645177312096,0.49,2936.4,2936.3,0.0239898]
[1645177314940,1.49,2936.4,2936.3,0.0239898]
[1645177315338,0.49,2936.4,2936.3,0.0239898]
[1645177317437,18.49,2936.4,2936.3,0.0239898]
[1645177317837,19.49,2936.4,2936.3,0.0239898]
[1645177319600,1.49,2936.4,2936.3,0.0239898]
[1645177319802,0.49,2936.4,2936.3,0.0239898]
[1645177321952,3.16045556,2936.4,2936.3,0.0239898]
[1645177322346,4.16045556,2936.4,2936.3,0.0239898]
[1645177323354,12.66045556,2936.4,2935.8,2.64483033]
[1645177323553,4.0252619,2936.3,2936.2,0.00284613]
[1645177323751,2.8,2936.2,2935.8,2.30946235]
[1645177323951,6.127,2936.0,2935.8,2.30946235]
[1645177324152,0.49,2935.9,2935.8,2.30946235]
[1645177324354,7.58772552,2935.9,2935.8,2.30946235]
[1645177324652,6.617,2935.9,2935.8,2.30946235]
[1645177324854,7.46939,2935.9,2935.8,2.30946235]
[1645177325253,8.76939,2935.9,2935.8,2.30946235]
[1645177327792,18.76939,2935.9,2935.8,2.30946235]
[1645177330741,8.76939,2935.9,2935.8,2.30946235]
[1645177331744,8.80779875,2935.9,2935.8,2.30946235]
[1645177332444,27.80779875,2935.9,2935.8,2.30946235]
[1645177332845,27.89391491,2935.9,2935.8,2.30946235]
[1645177334605,27.89391491,2935.9,2935.8,2.26726645]
[1645177334805,27.59391491,2935.9,2935.8,2.26726645]
[1645177336608,27.50779875,2935.9,2935.8,2.26726645]
[1645177336808,27.80779875,2935.9,2935.8,2.26726645]
[1645177337243,30.47885537,2935.9,2935.8,2.26726645]
[1645177338554,2.0,2935.8,2935.7,0.00295734]
[1645177338849,0.85237,2935.6,2935.0,0.00496778]
[1645177339049,0.49,2935.5,2935.0,0.00496778]
[1645177339250,0.79,2935.5,2935.0,0.00496778]
[1645177339549,1.71325851,2935.5,2935.0,0.00496778]
[1645177339853,1.71325851,2935.5,2933.5,0.01183823]
[1645177339854,11.127,2935.1,2933.5,0.01183823]
[1645177340050,11.127,2935.1,2933.3,7.3]
[1645177340051,6.127,2934.4,2933.3,1.1254]
[1645177340251,0.49,2934.3,2933.5,0.01183766]
[1645177340451,1.49,2934.3,2933.5,0.01183766]
[1645177340696,1.79,2934.3,2933.5,0.01183766]
[1645177340898,1.79,2934.3,2933.8,0.89903852]
[1645177341294,1.79,2934.3,2933.4,0.1704]
[1645177341495,1.79,2934.3,2934.0,0.00223788]
[1645177341696,1.70563,2934.2,2934.0,0.00223788]
[1645177341895,0.49,2934.1,2934.0,0.00223788]
[1645177342095,1.34279,2934.1,2934.0,0.00223788]
[1645177342295,2.34279,2934.1,2933.4,0.52027199]
[1645177342595,2.34279,2934.1,2933.9,0.00296199]
[1645177343400,1.34279,2934.1,2933.9,0.00296199]
[1645177343604,2.34279,2934.1,2933.6,0.90287087]
[1645177343801,1.34279,2934.1,2933.9,0.00296204]
[1645177344000,2.34279,2934.1,2933.9,0.00296204]
[1645177344443,1.34279,2934.1,2933.9,0.00296204]
[1645177344644,2.34279,2934.1,2933.9,3.40296204]
[1645177344843,2.34279,2934.1,2933.9,3.4]
[1645177345043,1.34279,2934.1,2933.9,3.40296204]
[1645177345443,2.34279,2934.1,2933.9,3.40296204]
[1645177345645,0.49,2934.1,2933.9,3.40296204]
[1645177346043,0.49,2934.1,2933.9,3.4]
[1645177346247,0.49,2934.1,2933.9,3.40223801]
[1645177347243,1.49,2934.1,2933.9,3.4]
[1645177347450,0.49,2934.1,2934.0,3.5]
[1645177347648,0.49,2934.1,2933.9,3.40296531]
[1645177347649,1.49,2934.1,2933.9,3.40296531]
[1645177347846,0.49,2934.1,2933.9,3.40296531]
[1645177348498,0.49,2934.1,2933.9,3.4]
[1645177348799,0.49,2934.1,2933.9,3.40311227]
[1645177349197,1.70548,2934.5,2934.0,3.5]
[1645177349198,0.49,2934.5,2934.0,3.5]
[1645177349397,3.41111,2935.5,2934.0,3.5]
[1645177349398,15.49,2934.9,2934.0,3.6703]
[1645177349598,7.28352518,2935.9,2934.1,1.2377]
[1645177349599,0.49,2935.3,2934.1,1.2377]
[1645177349800,0.49,2935.3,2934.2,3.6703]
[1645177350198,0.49,2935.3,2934.6,0.87639049]
[1645177350799,0.85239,2935.2,2934.6,0.87639049]
[1645177350999,0.85239,2935.2,2934.8,0.00311149]
[1645177351198,1.15239,2935.2,2934.8,0.00311149]
[1645177351408,0.49,2935.3,2934.8,0.00311149]
[1645177351601,1.0,2935.5,2934.8,0.00311149]
[1645177351948,3.19468,2935.7,2934.6,4.37639049]
[1645177352344,3.19468,2935.7,2935.0,0.00295451]
[1645177352345,0.85232,2935.5,2935.0,0.00295451]
[1645177352744,6.0,2935.4,2935.0,0.00295451]
[1645177353151,0.3,2935.4,2935.0,0.00295451]
[1645177353350,0.3,2935.4,2934.8,3.5]
[1645177353351,5.0,2935.3,2934.6,3.5]
[1645177353551,0.85242,2935.1,2934.6,3.5]
[1645177353751,1.15242,2935.1,2934.6,3.5]
[1645177353955,1.15242,2935.1,2934.5,7.3]
[1645177354353,1.15242,2935.1,2934.6,3.5]
[1645177354752,1.15242,2935.1,2934.7,0.00295478]
[1645177354952,1.15242,2935.1,2934.7,0.00785897]
[1645177355553,1.15242,2935.1,2934.7,0.00490419]
[1645177355790,1.15242,2935.1,2934.8,0.0029675]
[1645177356797,1.15242,2935.1,2934.8,0.02821145]
[1645177357093,1.15242,2935.1,2934.8,0.03117891]
[1645177357295,1.64242,2935.1,2934.8,0.03117891]
[1645177357894,9.64242,2935.1,2934.8,0.03117891]
[1645177358095,9.64242,2935.1,2934.8,0.02821145]
[1645177358298,1.0,2935.0,2934.8,0.03117891]
[1645177358902,1.64242,2935.1,2934.8,0.03117891]
[1645177359305,1.64242,2935.1,2934.8,0.02821145]
[1645177359546,1.64242,2935.1,2934.8,0.03117583]
[1645177360446,1.64242,2935.1,2934.8,0.02821145]
[1645177360645,1.64242,2935.1,2934.8,0.03117583]
[1645177361747,1.64242,2935.1,2934.7,0.00490419]
[1645177361944,1.64242,2935.1,2934.8,0.00296438]
[1645177362145,0.79,2935.1,2934.8,0.00296438]
[1645177362946,0.79,2935.1,2935.0,1.12496933]
[1645177363192,0.79,2935.1,2935.0,1.12987352]
[1645177363996,0.79,2935.1,2935.0,0.00490419]
[1645177364196,0.79,2935.1,2934.9,0.00296451]
[1645177364399,1.64242,2935.1,2934.9,0.00296451]
[1645177365298,1.64242,2935.1,2934.7,0.00490419]
[1645177365499,1.64242,2935.1,2934.9,0.00296455]
[1645177365699,1.64242,2935.1,2934.9,0.00786874]
[1645177366498,1.64242,2935.1,2934.9,0.00490419]
[1645177366700,1.64242,2935.1,2934.9,0.00788032]
[1645177367544,1.64242,2935.1,2934.9,0.00490419]
[1645177367945,1.64242,2935.1,2934.9,0.00788032]
[1645177368751,1.64242,2935.1,2934.9,0.00490419]
[1645177369151,1.64242,2935.1,2934.9,0.00788032]
[1645177370052,0.49,2935.1,2934.9,3.44097096]
[1645177370254,7.19722275,2935.9,2934.9,0.30787876]
[1645177370255,3.5,2935.8,2934.9,0.30787876]
[1645177370455,3.5,2935.8,2934.9,9.97989038]
[1645177370694,3.5,2935.8,2935.0,1.45290073]
[1645177370893,3.5,2936.3,2935.1,0.00490419]
[1645177371194,0.85206,2936.3,2935.1,0.00490419]
[1645177371396,2.15206,2936.3,2935.6,0.00297403]
[1645177371594,1.15206,2936.3,2935.6,0.00297403]
[1645177371792,2.15206,2936.3,2935.6,0.00297403]
[1645177372393,2.15206,2936.3,2935.5,0.97265606]
[1645177372595,0.8521,2936.2,2935.5,0.97265606]
[1645177372794,1.8521,2936.2,2935.8,0.00297384]
[1645177373598,0.85217,2936.0,2935.1,3.61330895]
[1645177373798,0.85217,2936.0,2935.9,0.00297397]
[1645177373799,1.15217,2936.0,2935.9,0.00297397]
[1645177374850,1.15217,2936.0,2935.2,0.86554457]
[1645177375052,0.8522,2935.9,2935.8,0.00297401]
[1645177376051,0.8522,2935.9,2935.2,0.86554457]
[1645177376251,0.8522,2935.9,2935.7,0.00297408]
[1645177376652,0.8522,2935.9,2935.7,0.00167812]
[1645177377255,0.8522,2935.9,2935.3,0.01465362]
[1645177377452,1.1522,2935.9,2935.3,0.01465362]
[1645177377654,1.1522,2935.9,2935.7,3.4]
[1645177377853,2.00942317,2935.9,2935.7,3.4]
[1645177378052,0.49,2935.8,2935.7,3.4]
[1645177380602,0.79,2935.8,2935.7,3.4]
[1645177381201,1.09,2935.8,2935.7,3.4]
[1645177381802,1.09,2935.8,2935.7,3.41457066]
[1645177382049,1.09,2935.8,2935.7,3.0731136]
[1645177382949,4.59,2935.8,2935.7,3.0731136]
[1645177383356,2.09,2935.8,2935.7,3.0731136]
[1645177384556,0.87039526,2935.6,2935.1,0.00490419]
[1645177384757,1.64248,2935.5,2935.1,0.00490419]
[1645177385260,2.64248,2935.5,2935.1,0.00490419]
[1645177385906,2.64248,2935.5,2935.2,0.00297203]
[1645177386108,2.67148702,2935.4,2935.2,0.00297203]
[1645177386307,3.19508,2935.3,2935.2,0.00297203]
[1645177386711,3.49508,2935.3,2935.2,0.00297203]
[1645177386909,0.85255,2935.2,2934.9,0.00490419]
[1645177387108,0.85255,2935.2,2935.1,0.00297207]
[1645177387308,1.34255,2935.2,2935.1,0.00297207]
[1645177387708,1.64255,2935.2,2935.1,0.00297207]
[1645177388109,1.64255,2935.2,2934.9,0.00490419]
[1645177388312,1.64255,2935.2,2935.0,0.00297214]
[1645177388713,2.49508,2935.2,2935.0,0.00297214]
[1645177389314,2.49508,2935.2,2934.9,0.00490419]
[1645177389557,2.49508,2935.2,2935.0,0.00297493]
[1645177390161,1.34253,2935.2,2935.0,3.40297493]
[1645177390360,1.34253,2935.2,2935.0,3.4]
[1645177390760,1.34253,2935.2,2935.0,3.40297493]
[1645177390962,0.49,2935.2,2935.0,4.52931447]
[1645177391560,0.49,2935.2,2935.0,4.52633954]
[1645177391762,0.49,2935.2,2935.1,0.01837925]
[1645177392961,0.49,2935.2,2935.1,3.51837925]
[1645177393201,0.3,2935.3,2935.1,3.51837925]
[1645177394407,0.3,2935.3,2935.1,3.52135382]
[1645177395314,0.3,2935.3,2935.1,3.51837925]
[1645177395507,0.3,2935.3,2935.1,3.52135382]
[1645177396407,0.3,2935.3,2935.1,3.51837925]
[1645177396608,0.3,2935.3,2935.1,3.52135385]
[1645177397050,0.3,2935.3,2935.1,3.5029746]
[1645177397752,0.3,2935.3,2935.1,3.5]
[1645177397956,0.3,2935.3,2935.1,3.5029746]
[1645177398757,0.3,2935.3,2935.1,3.5]
[1645177399158,0.3,2935.3,2935.1,3.5029746]
[1645177399360,0.3,2935.3,2935.1,0.0029746]
[1645177399361,1.32920718,2935.2,2935.1,0.0029746]
[1645177399759,1.62920718,2935.2,2935.0,3.4]
[1645177399959,1.62920718,2935.2,2935.0,3.05970255]
[1645177399960,2.71532334,2935.2,2935.0,3.05970255]
[1645177400562,1.9699551,2935.1,2935.0,3.05970255]
[1645177400806,2.4599551,2935.1,2935.0,3.05970255]
[1645177401006,3.4599551,2935.1,2935.0,3.05970255]
[1645177401206,3.54607126,2935.1,2935.0,3.05970255]
[1645177401616,15.73111126,2935.1,2935.0,3.05970255]
[1645177401812,17.45417982,2935.1,2935.0,3.05970255]
[1645177402109,20.95417982,2935.1,2935.0,3.05970255]
[1645177402310,21.36320375,2935.1,2935.0,3.05970255]
[1645177402510,19.64013519,2935.1,2935.0,3.05970255]
[1645177403312,16.14013519,2935.1,2935.0,3.05970255]
[1645177403514,16.03111126,2935.1,2935.0,3.05970255]
[1645177403812,16.14013519,2935.1,2935.0,3.05970255]
[1645177404314,15.00938727,2935.1,2935.0,3.05970255]
[1645177404560,14.90036334,2935.1,2935.0,3.05970255]
[1645177407161,11.40036334,2935.1,2935.0,3.05970255]
[1645177407361,14.81424718,2935.1,2934.9,0.00326479]
[1645177407562,1.13920718,2935.0,2934.9,0.00326479]
[1645177407764,2.48190718,2935.0,2934.9,0.00326479]
[1645177407963,3.48190718,2935.0,2934.9,0.00326479]
[1645177408409,3.48190718,2935.0,2934.1,0.00490419]
[1645177408607,0.83920718,2934.8,2934.1,0.00490419]
[1645177408807,0.83920718,2934.5,2934.1,0.00490419]
[1645177409006,0.85264,2934.6,2934.1,0.00490419]
[1645177409007,0.83920718,2934.3,2934.1,0.00490419]
[1645177409209,0.83920718,2934.2,2934.1,0.00490419]
[1645177412954,0.83920718,2934.2,2934.1,3.40490419]
[1645177414058,0.83920718,2934.2,2934.1,3.4]
[1645177414259,0.83920718,2934.2,2934.1,3.3]
[1645177415361,1.32920718,2934.2,2934.1,3.3]
[1645177415563,4.82920718,2934.2,2934.1,3.3]
[1645177416016,5.82920718,2934.2,2934.1,3.3]
[1645177416913,5.85888585,2934.2,2934.1,3.3]
[1645177420751,6.15888585,2934.2,2934.1,3.3]
[1645177421551,5.85888585,2934.2,2934.1,3.3]
[1645177421952,5.86877874,2934.2,2934.1,3.3]
[1645177423808,5.86763261,2934.2,2934.1,3.3]
[1645177424420,8.53999511,2934.2,2934.1,3.3]
[1645177424809,8.83999511,2934.2,2934.1,3.3]
[1645177425615,8.53999511,2934.2,2934.1,3.3]
[1645177425811,5.86763261,2934.2,2934.1,3.3]
[1645177426016,2.36877874,2934.2,2934.1,3.3]
[1645177426415,1.36877874,2934.2,2934.1,3.3]
[1645177426616,2.36877874,2934.2,2934.1,3.3]
[1645177427160,2.36877874,2934.2,2934.1,6.8]
[1645177427364,2.36877874,2934.2,2934.1,3.3]
[1645177427961,1.36877874,2934.2,2934.1,3.3]
[1645177428164,2.36877874,2934.2,2934.1,3.3]
[1645177428368,2.36877874,2934.2,2934.1,6.8]
[1645177428764,1.36877874,2934.2,2934.1,6.8]
[1645177428967,2.36877874,2934.2,2934.1,6.8]
[1645177429370,1.7055,2934.6,2934.1,6.8]
[1645177429371,0.10902393,2935.1,2934.3,6.0]
[1645177429570,3.41072,2935.6,2934.3,6.0]
[1645177429571,1.72306856,2935.6,2934.8,0.01262778]
[1645177429768,0.10902393,2935.9,2934.9,0.1703]
[1645177429769,1.72306856,2935.9,2934.9,0.1703]
[1645177429969,0.85224,2935.8,2934.9,1.0938]
[1645177430168,0.85224,2935.8,2934.9,0.9235]
[1645177430367,0.85224,2935.8,2935.1,1.10094884]
[1645177432904,0.85224,2935.8,2935.2,3.5]
[1645177433307,1.70463,2935.8,2935.1,1.10094884]
[1645177433507,1.70474,2935.6,2935.2,3.5]
[1645177434309,1.70474,2935.6,2935.0,0.0032812]
[1645177434959,1.70474,2935.6,2934.8,1.952]
[1645177435160,1.70474,2935.6,2935.0,0.00328116]
[1645177435360,0.98716671,2935.5,2935.0,0.00328116]
[1645177435864,2.83962671,2935.5,2935.0,0.00328116]
[1645177436162,2.83962671,2935.5,2934.8,5.352]
[1645177436163,3.62962671,2935.5,2934.8,5.352]
[1645177436362,1.70492,2935.3,2935.0,0.00328114]
[1645177437368,1.70492,2935.3,2934.8,3.4]
[1645177437566,1.70492,2935.3,2935.0,0.00328112]
[1645177438419,1.70492,2935.3,2934.8,3.4]
[1645177438822,1.70492,2935.3,2935.0,0.00328112]
[1645177439223,0.8524,2935.2,2935.0,0.00328112]
[1645177439526,1.1524,2935.2,2935.0,0.00328112]
[1645177439724,1.1524,2935.2,2934.8,3.4]
[1645177439922,1.1524,2935.2,2935.0,0.00328111]
[1645177440924,1.1524,2935.2,2934.9,3.5]
[1645177440925,1.3,2935.2,2934.9,3.5]
[1645177441125,1.64233,2935.5,2935.0,0.00328111]
[1645177441126,1.34233,2935.5,2935.0,0.00328111]
[1645177441524,0.49,2935.5,2935.0,0.00328111]
[1645177441955,0.49,2935.5,2935.1,0.01217478]
[1645177442155,0.49,2935.5,2935.1,3.51217478]
[1645177443756,1.34231,2935.5,2935.1,3.51217478]
[1645177446208,1.34231,2935.5,2935.1,0.01217478]
[1645177446608,1.34231,2935.5,2935.1,3.51217478]
[1645177447013,1.34231,2935.5,2935.3,0.01230925]
[1645177447611,1.34231,2935.5,2934.8,3.4]
[1645177447612,0.32468321,2935.0,2934.8,3.4]
[1645177447812,0.85257,2934.9,2934.8,3.4]
[1645177448209,2.15257,2934.9,2934.8,3.4]
[1645177448414,3.07940949,2934.9,2934.8,3.4]
[1645177448619,3.56940949,2934.9,2934.8,3.4]
[1645177451859,3.56940949,2934.9,2934.8,3.41396004]
[1645177453506,3.48329333,2934.9,2934.8,3.41396004]
[1645177456210,2.64257,2934.9,2934.8,3.41396004]
[1645177456410,2.34257,2934.9,2934.8,3.41396004]
[1645177456612,0.32468321,2935.0,2934.8,3.41396004]
[1645177456810,0.32468321,2935.0,2934.9,0.1703]
[1645177457061,0.32468321,2935.0,2934.9,1.17035834]
[1645177458467,0.32468321,2935.0,2934.9,0.1703]
[1645177458667,1.17715321,2935.0,2934.9,0.1703]
[1645177458865,1.17715321,2935.0,2934.8,3.427719]
[1645177459266,1.47715321,2935.0,2934.8,3.43100024]
[1645177459867,1.77715321,2935.0,2934.8,3.43100024]
[1645177460068,1.77715321,2935.0,2934.8,3.427719]
[1645177460470,1.77715321,2935.0,2934.8,3.430892]
[1645177460919,4.27715321,2935.0,2934.8,3.400892]
[1645177461319,4.27715321,2935.0,2934.8,3.397719]
[1645177461521,4.27715321,2935.0,2934.8,3.400892]
[1645177462020,4.27715321,2935.0,2934.9,0.01393929]
[1645177462021,1.77715321,2935.0,2934.9,0.01393929]
[1645177466857,1.47715321,2935.0,2934.9,0.01393929]
[1645177467059,1.47715321,2935.0,2934.8,3.40420143]
[1645177467259,1.47715321,2935.0,2934.8,3.40119811]
[1645177467460,1.47715321,2935.0,2934.8,3.4041914]
[1645177468310,1.77715321,2935.0,2934.8,3.4041914]
[1645177468614,1.77715321,2935.0,2934.8,3.40119811]
[1645177468811,1.77715321,2935.0,2934.8,3.40419144]
[1645177469612,1.77715321,2935.0,2934.8,3.40119811]
[1645177470112,1.77715321,2935.0,2934.8,3.40419144]
[1645177470916,1.77715321,2935.0,2934.8,3.40119811]
[1645177471114,2.77715321,2935.0,2934.8,3.40419194]
[1645177471814,2.77715321,2935.0,2934.8,3.0463336]
[1645177472057,2.86326937,2935.0,2934.8,3.04333977]
[1645177472262,2.86326937,2935.0,2934.8,3.0463336]
[1645177472664,5.53504914,2935.0,2934.8,3.0463336]
[1645177473064,5.44893298,2935.0,2934.8,3.0463336]
[1645177473267,5.44893298,2935.0,2934.8,3.04333977]
[1645177473664,5.44893298,2935.0,2934.8,3.0463336]
[1645177474566,5.44893298,2935.0,2934.8,3.04333977]
[1645177474767,5.44893298,2935.0,2934.8,3.04633356]
[1645177475806,5.44893298,2935.0,2934.8,3.04333977]
[1645177476006,5.44893298,2935.0,2934.8,3.04633356]
[1645177477004,5.4690612,2935.0,2934.8,3.04333977]
[1645177477206,5.4690612,2935.0,2934.8,3.04633356]
[1645177477805,0.49,2934.9,2934.8,3.04633356]
[1645177478106,0.49,2934.9,2934.8,3.04333977]
[1645177478312,0.49,2934.9,2934.8,3.04633357]
[1645177479314,0.49,2934.9,2934.8,3.04333977]
[1645177482070,0.60989357,2934.9,2934.8,3.04333977]
[1645177487763,0.60989357,2934.9,2934.8,2.7390058]
[1645177492315,0.60989357,2934.9,2934.7,0.00299383]
[1645177492514,1.84677791,2934.8,2934.3,0.00490419]
[1645177492716,0.11989357,2934.6,2934.3,0.00490419]
[1645177492916,0.11989357,2934.4,2934.3,0.00490419]
[1645177493115,0.60989357,2934.4,2934.3,0.00490419]
[1645177493514,0.11989357,2934.3,2934.1,0.00490419]
[1645177493914,0.11989357,2934.3,2934.2,0.00299422]
[1645177494467,1.11989357,2934.3,2934.2,0.00299422]
[1645177494866,1.11989357,2934.3,2934.1,0.00490419]
[1645177495266,1.11989357,2934.3,2934.1,0.00789848]
[1645177495666,2.82539357,2934.3,2934.1,0.00789848]
[1645177496067,2.82539357,2934.3,2934.1,0.00490419]
[1645177496270,0.11989357,2934.2,2934.1,0.00789852]
[1645177497268,0.11989357,2934.2,2934.1,0.00490419]
[1645177498068,1.27263357,2934.2,2934.1,0.00490419]
[1645177501724,2.27263357,2934.2,2934.1,0.00490419]
[1645177503275,2.22263357,2934.2,2934.1,0.00490419]
[1645177504475,2.71263357,2934.2,2934.1,0.00490419]
[1645177505274,2.71263357,2934.2,2934.1,3.40490419]
[1645177506823,2.22263357,2934.2,2934.1,3.40490419]
[1645177508426,2.71263357,2934.2,2934.1,3.40490419]
[1645177509225,2.71263357,2934.2,2934.1,3.52775787]
[1645177514813,1.71263357,2934.2,2934.1,3.52775787]
[1645177515013,2.71263357,2934.2,2934.1,3.52775787]
[1645177520824,1.71263357,2934.2,2934.1,3.52775787]
[1645177521726,1.22263357,2934.2,2934.1,3.52775787]
[1645177523136,0.36989357,2934.2,2934.1,3.52775787]
[1645177523332,0.11989357,2934.2,2934.1,3.52643834]
[1645177523734,0.32387128,2934.3,2934.1,3.52643834]
[1645177523933,0.11989357,2934.2,2934.1,3.4650115]
[1645177524132,0.11989357,2934.2,2934.1,3.40358466]
[1645177529223,0.11989357,2934.2,2934.1,3.4650115]
[1645177529423,0.11989357,2934.2,2934.1,3.52643834]
[1645177543325,1.47652128,2934.3,2934.1,24.89000455]
[1645177543326,0.02387128,2934.3,2934.1,24.89000455]
[1645177543524,7.128e-05,2934.3,2934.2,1.45356621]
[1645177543919,7.128e-05,2934.3,2934.2,1.57641989]
[1645177544320,0.32468321,2935.0,2934.3,6.0]
[1645177544520,0.32468321,2935.0,2934.4,1.45356621]
[1645177545527,1.06660966,2935.2,2934.4,1.45356621]
[1645177545528,0.00453311,2935.5,2934.6,25.96]
[1645177545728,0.00453311,2935.6,2934.8,19.96]
[1645177545929,0.01257858,2935.9,2935.0,19.96]
[1645177546124,5.38893244,2936.2,2935.9,3.48288647]
[1645177546326,0.00451227,2936.0,2935.9,3.48288647]
[1645177546524,3.6620481,2936.2,2935.9,3.48288647]
[1645177546525,3.66656037,2936.2,2935.9,3.48288647]
[1645177547267,3.66656037,2936.2,2935.9,3.13459783]
[1645177547669,1.85212,2936.1,2935.9,3.13459783]
[1645177547870,1.72688434,2936.0,2935.9,3.13459783]
[1645177548069,1.49,2936.1,2935.9,3.13459783]
[1645177549074,1.79,2936.1,2935.9,3.13459783]
[1645177549272,2.09,2936.1,2936.0,0.12285368]
[1645177550074,0.72931632,2935.9,2935.3,1.917]
[1645177550277,0.3,2935.8,2935.3,1.917]
[1645177550475,0.3,2935.8,2935.2,3.9865]
[1645177550733,2.00459,2935.8,2935.2,3.9865]
[1645177551536,2.00459,2935.8,2935.2,1.1789]
[1645177551736,2.00459,2935.8,2935.4,0.00328406]
[1645177551737,1.15226,2935.6,2935.4,0.00328406]
[1645177552338,1.45226,2935.6,2935.4,0.00328406]
[1645177552638,1.45226,2935.6,2935.2,1.1789]
[1645177552838,1.45226,2935.6,2935.4,0.00328406]
[1645177553039,1.45226,2935.6,2935.4,3.40328406]
[1645177553845,1.45226,2935.6,2935.4,3.4]
[1645177554046,1.45226,2935.6,2935.4,3.40297424]
[1645177554867,1.45226,2935.6,2935.4,3.4]
[1645177555265,1.45226,2935.6,2935.4,3.40297424]
[1645177555472,1.15226,2935.6,2935.4,3.40297424]
[1645177556071,0.3,2935.6,2935.4,3.4]
[1645177556275,2.30459,2935.8,2935.4,3.4]
[1645177556472,2.30459,2935.8,2935.4,3.40297424]
[1645177556872,2.30459,2935.8,2935.5,0.01744814]
[1645177557674,0.85228,2935.6,2935.5,0.0204471]
[1645177557873,1.15228,2935.6,2935.5,0.0204471]
[1645177558074,1.45228,2935.6,2935.5,0.0204471]
[1645177558524,1.45228,2935.6,2935.5,0.01744814]
[1645177558723,1.15228,2935.6,2935.5,0.01744814]
[1645177559721,1.45228,2935.6,2935.5,0.01744814]
[1645177560420,1.15228,2935.6,2935.5,0.01744814]
[1645177561624,1.94228,2935.6,2935.5,0.01744814]
[1645177562074,3.64727,2935.6,2935.4,3.07540366]
[1645177562276,1.0,2935.5,2935.4,3.07540366]
[1645177562475,1.49,2935.5,2935.4,3.0784004]
[1645177563474,1.49,2935.5,2935.4,3.07540366]
[1645177564079,1.49448971,2935.5,2935.4,3.07540366]
[1645177564778,0.49448971,2935.5,2935.4,3.07540366]
[1645177564976,1.49448971,2935.5,2935.4,3.07540366]
[1645177572379,1.58060587,2935.5,2935.4,3.07540366]
[1645177573221,1.49448971,2935.5,2935.4,3.07540366]
[1645177575931,0.49448971,2935.5,2935.4,3.07540366]
[1645177576131,1.49448971,2935.5,2935.4,3.07540366]
[1645177576731,0.49448971,2935.5,2935.4,3.07540366]
[1645177576972,4.1657771,2935.5,2935.4,3.07540366]
[1645177577173,4.1657771,2935.5,2935.4,2.7675636]
[1645177579485,3.1657771,2935.5,2935.4,2.7675636]
[1645177580720,4.1657771,2935.5,2935.4,2.7675636]
[1645177580925,4.1657771,2935.5,2935.3,0.00299702]
[1645177580926,6.0,2935.4,2935.3,0.00299702]
[1645177581118,6.0,2935.4,2933.9,2.1564]
[1645177581119,7.12391136,2935.3,2933.9,2.1564]
[1645177581322,1.72849881,2934.9,2933.9,2.1564]
[1645177581519,0.49,2934.8,2933.9,2.1564]
[1645177581918,0.79,2934.8,2933.9,3.33819374]
[1645177582320,2.64283,2934.8,2933.9,3.33819374]
[1645177582521,3.58176006,2934.8,2933.9,3.33819374]
[1645177582722,3.58176006,2934.8,2934.4,0.00225437]
[1645177583721,3.58176006,2934.8,2933.9,3.16789374]
[1645177583722,0.3,2934.6,2933.9,3.16789374]
[1645177583922,2.19556,2934.5,2933.9,3.16789374]
[1645177584124,2.49556,2934.5,2933.9,3.16789374]
[1645177584322,0.3,2934.4,2933.9,1.18179374]
[1645177584573,0.49,2934.3,2933.9,1.18179374]
[1645177584777,0.79,2934.3,2933.9,1.18179374]
[1645177584973,1.6427826,2934.3,2933.9,1.18179374]
[1645177585173,1.6427826,2934.3,2934.1,0.00790788]
[1645177586079,1.6427826,2934.3,2933.9,0.00490463]
[1645177586281,0.8528,2934.2,2933.9,0.00490463]
[1645177586580,0.8528,2934.2,2934.1,3.40299236]
[1645177586581,1.3428,2934.2,2934.1,3.40299236]
[1645177587385,1.3428,2934.2,2934.1,3.4]
[1645177587583,3.04837,2934.2,2934.1,3.4]
[1645177588627,3.34837,2934.2,2934.1,3.4]
[1645177590332,2.49553,2934.2,2934.1,3.4]
[1645177592171,3.49553,2934.2,2934.1,3.4]
[1645177596117,3.58164616,2934.2,2934.1,3.4]
[1645177596420,3.49553,2934.2,2934.1,3.4]
[1645177599021,3.58164616,2934.2,2934.1,3.4]
[1645177601674,3.58164616,2934.2,2934.1,3.39882564]
[1645177602276,3.49553,2934.2,2934.1,3.39882564]
[1645177602480,2.49553,2934.2,2934.1,3.39882564]
[1645177602883,2.19553,2934.2,2934.1,3.39882564]
[1645177603325,3.49553,2934.2,2934.1,3.39882564]
[1645177603929,3.49553,2934.2,2934.1,6.7725494]
[1645177603930,3.19553,2934.2,2934.1,6.7725494]
[1645177604127,6.93623613,2934.6,2934.2,0.28716527]
[1645177604128,3.67217523,2934.6,2934.2,0.28716527]
[1645177604332,0.91840136,2935.3,2934.3,0.1703]
[1645177604525,0.91840136,2935.3,2934.3,3.6703]
[1645177604725,0.91840136,2935.3,2934.4,1.45323966]
[1645177604928,0.91840136,2935.3,2934.5,3.6703]
[1645177605127,0.91840136,2935.3,2935.2,1.07918904]
[1645177605328,0.91840136,2935.3,2934.6,1.2076]
[1645177605530,0.91840136,2935.3,2934.7,3.5]
[1645177605531,1.77077136,2935.3,2934.7,3.5]
[1645177606428,1.77077136,2935.3,2934.9,1.08629474]
[1645177606630,1.77077136,2935.3,2935.0,3.5]
[1645177607270,0.91840136,2935.3,2935.0,3.5]
[1645177608072,0.91840136,2935.3,2935.0,3.50329562]
[1645177608975,0.91840136,2935.3,2935.0,3.5]
[1645177609274,0.91840136,2935.3,2935.0,3.50329562]
[1645177610174,0.91840136,2935.3,2935.1,3.5]
[1645177610375,0.91840136,2935.3,2935.2,3.5]
[1645177611320,0.91840136,2935.3,2935.2,7.0]
[1645177612020,0.91840136,2935.3,2935.2,3.5]
[1645177612627,0.91840136,2935.3,2935.1,3.4]
[1645177612828,0.91840136,2935.3,2935.2,3.5]
[1645177613229,0.91840136,2935.3,2935.2,7.0]
[1645177613627,0.91840136,2935.3,2935.2,3.5]
[1645177616269,0.91840136,2935.3,2935.1,3.4]
[1645177616471,1.21840136,2935.3,2935.1,6.90329553]